bitfinex/quotes_ETHUSD_20250821
["timestamp","ask_amount","ask_price","bid_price","bid_amount"]
[1755746706848,0.002,4315.8,4315.7,6.07749241]
[1755746707049,0.002,4315.8,4315.7,6.0543212]
[1755746710241,0.002,4315.8,4315.7,6.7143212]
[1755746713368,0.002,4316.3,4316.2,2.97685278]
[1755746713674,0.002,4316.3,4316.2,30.91254648]
[1755746713836,0.002,4316.3,4316.2,31.46357796]
[1755746715439,0.002,4316.3,4316.2,33.90457796]
[1755746716472,0.002,4316.7,4316.4,3.101]
[1755746716686,0.002,4316.7,4316.6,27.41352518]
[1755746716841,0.002,4316.7,4316.6,29.84616327]
[1755746717038,0.002,4316.7,4316.6,30.30436327]
[1755746720863,0.002,4317.2,4316.7,7.75758442]
[1755746721060,0.002,4317.2,4317.1,27.40489496]
[1755746721265,0.002,4317.4,4317.3,2.31626247]
[1755746721465,0.022,4318.8,4317.7,2.97604789]
[1755746721698,0.022,4318.8,4317.7,30.88657307]
[1755746722195,0.022,4318.8,4317.7,31.46077307]
[1755746723205,0.022,4318.8,4317.7,33.90177307]
[1755746724598,0.4619,4318.8,4317.7,33.90177307]
[1755746724802,0.022,4318.8,4317.7,33.90177307]
[1755746727195,0.022,4318.8,4317.7,38.09177307]
[1755746729902,0.4419,4318.7,4317.7,38.09177307]
[1755746730774,0.4419,4318.7,4317.7,37.63357307]
[1755746730978,0.002,4318.7,4317.7,34.03557307]
[1755746731327,0.4399,4318.1,4317.7,34.88817307]
[1755746731500,0.002,4318.7,4317.7,35.18957307]
[1755746731705,0.4399,4318.5,4317.7,35.18957307]
[1755746733206,0.002,4318.7,4317.7,35.18957307]
[1755746733413,0.4419,4318.3,4317.7,35.18957307]
[1755746734907,0.3332,4317.8,4317.7,34.88817307]
[1755746735071,0.02,4317.8,4317.7,35.18957307]
[1755746735275,0.02,4317.8,4317.7,38.09077307]
[1755746735475,0.02,4317.8,4317.7,34.03757307]
[1755746735673,0.3352,4317.8,4317.7,30.63317307]
[1755746735900,0.7751,4317.8,4317.7,34.22717307]
[1755746736479,0.7751,4317.8,4317.7,13.21604789]
[1755746736680,0.7751,4317.8,4317.7,34.22717307]
[1755746738601,0.022,4317.8,4317.7,30.03717307]
[1755746739486,0.022,4317.8,4317.7,37.63157307]
[1755746739709,0.022,4317.8,4317.7,38.08977307]
[1755746740410,0.022,4317.8,4317.7,24.61863272]
[1755746742922,0.002,4318.3,4317.7,24.61863272]
[1755746742923,0.002,4318.3,4318.2,2.97577972]
[1755746743084,0.002,4318.3,4318.2,17.43572234]
[1755746743285,0.002,4318.3,4318.2,17.52856455]
[1755746743820,0.002,4318.3,4318.2,17.70266511]
[1755746744394,0.002,4318.3,4318.2,27.31216608]
[1755746744920,0.002,4318.3,4318.2,30.20966608]
[1755746745719,0.002,4318.7,4318.6,3.103]
[1755746746021,0.002,4319.4,4318.7,6.103]
[1755746746319,0.002,4319.4,4319.0,25.87163657]
[1755746746618,0.002,4319.4,4319.0,29.58063657]
[1755746746803,0.002,4319.4,4319.0,30.03513657]
[1755746747595,0.002,4319.4,4319.0,29.58063657]
[1755746748318,0.002,4319.4,4319.0,30.03513657]
[1755746748518,0.002,4319.4,4319.1,8.41829716]
[1755746748702,0.002,4319.4,4319.1,9.17659716]
[1755746749406,0.002,4319.4,4319.2,8.41824356]
[1755746749608,0.002,4319.6,4319.2,8.41824356]
[1755746749609,0.002,4319.6,4319.3,8.41818996]
[1755746749815,0.002,4319.6,4319.5,22.87136856]
[1755746750020,0.002,4319.6,4319.5,25.98736856]
[1755746750319,0.002,4319.6,4319.5,26.10488349]
[1755746752216,0.4567,4320.2,4319.5,26.10488349]
[1755746752217,0.002,4320.2,4320.0,0.66]
[1755746752416,0.002,4320.2,4320.1,23.14739464]
[1755746752623,0.2907,4320.2,4320.1,23.12424703]
[1755746752922,0.2907,4320.2,4320.1,26.71524703]
[1755746753126,0.7454,4320.2,4320.1,26.71524703]
[1755746753821,0.7454,4320.2,4320.1,3.66]
[1755746754022,0.7454,4320.2,4320.1,7.251]
[1755746754564,0.7454,4320.2,4320.1,3.591]
[1755746755726,0.7454,4320.2,4320.0,3.0]
[1755746755927,0.2907,4320.2,4320.1,3.59]
[1755746756534,0.7454,4320.2,4320.1,3.59]
[1755746756841,0.7454,4320.2,4320.0,3.0]
[1755746757121,0.4547,4320.1,4318.8,0.001]
[1755746757328,0.2887,4318.9,4318.8,0.001]
[1755746757529,0.2887,4318.9,4318.8,6.611]
[1755746757827,0.7434,4318.9,4318.8,6.611]
[1755746758039,0.7434,4318.9,4318.8,3.611]
[1755746761228,0.7434,4318.9,4318.8,0.021]
[1755746761534,0.7434,4318.9,4318.8,3.611]
[1755746762249,0.8594,4318.9,4318.8,3.611]
[1755746765462,0.8594,4318.9,4318.8,0.021]
[1755746765930,2.66028858,4318.9,4318.8,0.021]
[1755746766134,0.8594,4318.9,4318.8,0.021]
[1755746767964,1.5194,4318.9,4318.8,0.021]
[1755746768163,18.6688858,4318.9,4318.8,0.021]
[1755746768376,21.6688858,4318.9,4318.8,0.021]
[1755746768542,4.5194,4318.9,4318.8,0.021]
[1755746768741,22.4797258,4318.9,4318.8,0.021]
[1755746769775,3.66,4318.8,4318.3,0.001]
[1755746769972,18.2141858,4318.4,4318.3,0.001]
[1755746770158,21.2141858,4318.4,4318.3,0.001]
[1755746770470,23.83577438,4318.4,4318.3,0.001]
[1755746771068,27.42577438,4318.4,4318.3,0.001]
[1755746772168,10.27628858,4318.4,4318.3,0.001]
[1755746772374,7.4484,4318.4,4318.3,0.001]
[1755746772561,0.8594,4318.4,4318.3,0.001]
[1755746774342,0.4047,4318.4,4318.3,0.001]
[1755746774543,0.4047,4318.4,4318.3,0.3008]
[1755746774544,0.116,4318.4,4318.3,0.3008]
[1755746775156,0.4386,4319.1,4318.3,0.3008]
[1755746775362,0.3082,4318.4,4318.3,0.001]
[1755746775790,2.05396858,4318.4,4318.3,0.001]
[1755746775960,2.49256858,4318.4,4318.3,0.001]
[1755746780489,2.05396858,4318.4,4318.3,0.001]
[1755746781198,0.3082,4318.4,4318.3,0.001]
[1755746781501,0.7468,4318.4,4318.3,0.001]
[1755746781994,0.3082,4318.4,4318.3,0.001]
[1755746782627,11.13405964,4318.9,4318.3,0.001]
[1755746782781,0.3082,4318.4,4318.3,0.001]
[1755746783178,0.4386,4318.8,4318.3,0.001]
[1755746783415,11.13405964,4318.9,4318.3,0.001]
[1755746783416,0.7468,4318.4,4318.3,0.001]
[1755746784181,0.3082,4318.4,4318.3,0.001]
[1755746784496,0.4386,4319.0,4318.3,0.3008]
[1755746784708,3.589,4318.9,4318.3,0.001]
[1755746784909,1.15726596,4318.8,4318.3,0.001]
[1755746785323,4.0276,4319.3,4318.7,0.2998]
[1755746785521,0.116,4318.9,4318.7,0.2998]
[1755746786416,0.7468,4318.8,4318.3,0.001]
[1755746786626,0.116,4318.4,4318.3,0.001]
[1755746786829,0.4242,4318.4,4318.3,0.001]
[1755746787027,2.66525827,4318.4,4318.3,0.001]
[1755746787816,0.8628,4318.4,4318.3,0.001]
[1755746788128,0.116,4318.4,4318.3,0.001]
[1755746788325,0.116,4318.4,4318.3,0.3008]
[1755746788526,0.4242,4318.4,4318.3,0.001]
[1755746789106,0.116,4318.4,4318.3,0.3008]
[1755746789311,0.002,4318.9,4318.3,0.3008]
[1755746789312,0.002,4318.9,4318.3,0.7537]
[1755746789523,0.116,4318.7,4318.3,0.7537]
[1755746789829,0.116,4318.7,4318.4,0.4529]
[1755746790034,0.116,4318.7,4318.6,0.2998]
[1755746790603,0.116,4318.7,4318.6,0.7527]
[1755746790803,0.116,4318.7,4318.6,0.2998]
[1755746791004,0.002,4318.9,4318.3,0.001]
[1755746791229,0.118,4318.9,4318.3,0.001]
[1755746791731,0.3082,4318.4,4318.3,0.001]
[1755746791897,0.4242,4318.4,4318.3,0.001]
[1755746792099,0.116,4318.4,4318.3,0.3008]
[1755746793066,0.4406,4318.9,4318.3,0.3008]
[1755746793067,0.116,4318.7,4318.3,0.7537]
[1755746793425,0.116,4318.7,4318.4,0.4529]
[1755746793756,0.116,4318.7,4318.6,0.2998]
[1755746794250,0.8628,4318.7,4318.3,0.001]
[1755746794449,0.4386,4318.6,4318.3,0.001]
[1755746794631,0.4242,4318.4,4318.3,0.001]
[1755746795031,0.8628,4318.4,4318.3,0.001]
[1755746795233,2.66525827,4318.4,4318.3,0.001]
[1755746795919,2.22665827,4318.4,4318.3,0.001]
[1755746796114,0.116,4318.4,4318.3,0.3008]
[1755746800031,0.002,4318.9,4318.3,0.7537]
[1755746800032,0.116,4318.8,4318.3,0.7537]
[1755746801063,0.116,4318.8,4318.3,0.3008]
[1755746801356,0.116,4318.8,4318.4,0.8775]
[1755746801523,0.116,4318.8,4318.7,0.3059]
[1755746802236,0.116,4318.8,4318.7,0.7465]
[1755746802764,0.116,4318.8,4318.7,0.4406]
[1755746803124,0.116,4318.8,4318.7,0.7465]
[1755746803321,0.116,4318.8,4318.7,0.4406]
[1755746804059,0.8856,4318.8,4318.7,0.4406]
[1755746804268,2.69053827,4318.8,4318.7,0.4406]
[1755746810576,3.35053827,4318.8,4318.7,0.4406]
[1755746810781,0.66,4318.7,4318.3,0.001]
[1755746810991,21.25108271,4318.4,4318.3,0.001]
[1755746811281,23.61322234,4318.4,4318.3,0.001]
[1755746811580,24.06952234,4318.4,4318.3,0.001]
[1755746816500,27.65552234,4318.4,4318.3,0.001]
[1755746820302,19.95322234,4318.4,4318.3,0.001]
[1755746820505,3.701,4318.4,4318.3,0.3069]
[1755746821277,3.701,4318.4,4318.3,0.7438]
[1755746823116,0.116,4318.4,4318.3,0.7438]
[1755746823438,0.002,4318.8,4318.3,0.7438]
[1755746823439,0.116,4318.5,4318.3,0.7438]
[1755746823646,0.116,4318.5,4318.4,0.4369]
[1755746823921,0.116,4318.5,4318.4,0.7428]
[1755746827501,0.116,4318.5,4318.4,0.3059]
[1755746828098,0.116,4318.5,4318.3,0.001]
[1755746828297,0.116,4318.5,4318.4,0.3059]
[1755746828498,0.002,4318.8,4318.4,0.3059]
[1755746828833,0.002,4318.8,4318.5,0.4369]
[1755746829036,0.002,4318.8,4318.3,0.001]
[1755746829037,0.116,4318.5,4318.3,0.001]
[1755746829210,0.116,4318.5,4318.4,0.3059]
[1755746829838,0.116,4318.5,4318.4,0.7428]
[1755746831715,0.116,4318.5,4318.4,0.76595672]
[1755746831914,0.118,4318.8,4318.4,0.7428]
[1755746832230,0.118,4318.8,4318.5,0.4488]
[1755746832432,0.118,4318.8,4318.7,0.3011]
[1755746832602,0.118,4318.8,4318.4,0.116]
[1755746832799,0.002,4318.8,4318.4,0.116]
[1755746833011,0.116,4318.5,4318.4,0.116]
[1755746833207,0.116,4318.5,4318.4,0.4171]
[1755746833731,0.4166,4318.5,4318.4,0.116]
[1755746834235,0.8682,4318.5,4318.4,0.116]
[1755746834396,3.33139827,4318.5,4318.4,0.116]
[1755746834601,0.66,4318.4,4318.3,0.001]
[1755746834830,4.5436,4318.4,4318.3,0.117]
[1755746835035,4.9952,4318.4,4318.3,0.117]
[1755746836143,4.9952,4318.4,4318.3,0.001]
[1755746836345,7.35733963,4318.4,4318.3,0.001]
[1755746840330,10.35733963,4318.4,4318.3,0.001]
[1755746843770,6.77433963,4318.4,4318.3,0.001]
[1755746843974,7.9942,4318.4,4318.3,0.001]
[1755746847142,20.82178271,4318.0,4317.9,0.001]
[1755746847343,25.03688282,4318.0,4317.9,0.001]
[1755746847544,3.66,4317.9,4317.4,0.001]
[1755746847744,21.23838271,4317.5,4317.4,0.001]
[1755746847975,27.18252234,4317.5,4317.4,0.001]
[1755746848176,27.63412234,4317.5,4317.4,0.001]
[1755746851052,27.18252234,4317.5,4317.4,0.001]
[1755746852246,26.22192234,4317.5,4317.4,0.3021]
[1755746852679,26.88192234,4317.5,4317.4,0.001]
[1755746852871,26.52252234,4317.5,4317.4,0.001]
[1755746853272,27.18252234,4317.5,4317.4,0.001]
[1755746854582,26.88192234,4317.5,4317.4,0.001]
[1755746854783,23.29992234,4317.5,4317.4,0.3021]
[1755746855080,9.72013963,4317.5,4317.4,0.7509]
[1755746855281,7.358,4317.5,4317.4,0.7509]
[1755746855783,7.358,4317.5,4317.4,0.3021]
[1755746855981,3.582,4317.6,4317.4,0.7509]
[1755746856195,3.582,4317.6,4317.5,0.4488]
[1755746856397,3.582,4317.6,4317.5,0.3011]
[1755746856783,3.582,4317.6,4317.5,0.7499]
[1755746857101,3.0,4318.1,4317.5,0.7499]
[1755746857320,3.0,4317.9,4317.6,0.4488]
[1755746857501,3.0,4317.7,4317.4,0.001]
[1755746857669,3.582,4317.6,4317.4,0.001]
[1755746858201,17.16378271,4318.7,4317.5,0.7499]
[1755746858400,3.582,4318.6,4317.6,0.4488]
[1755746858597,5.07677827,4318.5,4317.6,0.4488]
[1755746858809,3.0,4318.3,4317.6,0.4488]
[1755746859101,3.0,4318.1,4317.6,0.4488]
[1755746859278,3.581,4318.0,4317.6,0.4488]
[1755746859482,6.9391,4318.0,4317.9,0.3011]
[1755746860700,6.9391,4318.0,4317.9,0.7499]
[1755746860902,7.2397,4318.0,4317.9,0.4488]
[1755746861264,7.8997,4318.0,4317.4,0.001]
[1755746861569,17.16178271,4317.9,4317.4,0.4498]
[1755746861879,5.94313963,4317.8,4317.4,0.4498]
[1755746862085,5.94313963,4317.8,4317.7,0.2857]
[1755746862773,3.581,4317.8,4317.7,0.2857]
[1755746863102,3.0,4318.0,4317.7,0.7373]
[1755746863269,3.581,4317.9,4317.8,0.4516]
[1755746863478,3.0,4318.0,4317.9,0.4516]
[1755746863697,3.0,4318.0,4317.9,0.7373]
[1755746863902,3.581,4318.0,4317.9,0.7373]
[1755746864674,3.581,4318.0,4317.9,0.2857]
[1755746865890,3.697,4318.0,4317.9,0.2857]
[1755746866410,3.697,4318.0,4317.9,0.7373]
[1755746867176,3.697,4318.0,4317.9,1.1889]
[1755746867588,3.697,4318.0,4317.9,0.7373]
[1755746869019,4.0667,4318.0,4317.9,0.4516]
[1755746869190,4.3686,4318.0,4317.9,0.4516]
[1755746869392,4.0667,4318.0,4317.9,0.7373]
[1755746869584,4.0667,4318.0,4317.9,0.4516]
[1755746870205,4.0667,4318.0,4317.9,0.7373]
[1755746870411,3.697,4318.0,4317.9,0.7373]
[1755746870606,3.697,4318.0,4317.9,1.1889]
[1755746871124,3.699,4318.0,4317.9,0.7373]
[1755746873421,0.118,4318.0,4317.9,1.1889]
[1755746876834,0.118,4318.0,4317.9,1.2120594]
[1755746877138,0.002,4318.0,4317.9,1.3049]
[1755746877640,0.002,4318.0,4317.9,1.3280594]
[1755746878133,0.002,4318.0,4317.9,4.3280594]
[1755746878352,0.002,4318.0,4317.9,7.9060594]
[1755746878644,0.002,4318.0,4317.9,7.8829]
[1755746881748,0.002,4318.0,4317.9,1.3049]
[1755746882045,0.002,4318.0,4317.9,4.3143]
[1755746882750,0.002,4318.0,4317.9,4.7659]
[1755746883153,0.002,4318.0,4317.9,7.7659]
[1755746883320,0.002,4318.0,4317.9,7.8819]
[1755746885129,0.002,4318.0,4317.9,4.3049]
[1755746885330,0.002,4318.0,4317.9,7.8819]
[1755746885531,0.002,4318.0,4317.9,4.3049]
[1755746885846,0.002,4318.0,4317.9,7.3143]
[1755746886749,0.002,4318.0,4317.9,7.7659]
[1755746890453,0.002,4318.0,4317.9,4.7659]
[1755746891125,0.002,4318.0,4317.9,4.7890594]
[1755746891325,0.002,4318.0,4317.9,4.7659]
[1755746894158,0.002,4318.0,4317.9,4.3143]
[1755746894862,0.002,4318.0,4317.9,0.4516]
[1755746894863,0.2979,4318.0,4317.9,0.4516]
[1755746895155,0.7402,4318.0,4317.9,0.4516]
[1755746895356,1.6845245,4318.0,4317.9,0.4516]
[1755746900049,2.3445245,4318.0,4317.9,0.197575]
[1755746900362,2.3445245,4318.0,4317.8,0.001]
[1755746900527,7.0173,4317.9,4317.8,0.001]
[1755746900733,7.3132,4317.9,4317.8,0.001]
[1755746900952,10.33533963,4317.9,4317.8,0.001]
[1755746906091,10.45133963,4317.9,4317.8,0.001]
[1755746906678,0.116,4317.9,4317.8,0.3025]
[1755746906862,0.116,4317.9,4317.8,0.7378]
[1755746907063,0.116,4317.9,4317.8,0.3025]
[1755746907269,0.002,4318.0,4317.8,0.3025]
[1755746909380,0.002,4318.0,4317.8,0.7378]
[1755746910292,0.002,4318.0,4317.9,0.4423]
[1755746910493,0.002,4318.0,4317.9,0.7438]
[1755746910792,0.002,4318.0,4317.9,1.1791]
[1755746912887,0.002,4318.0,4317.9,0.7438]
[1755746913503,0.002,4318.0,4317.9,0.4423]
[1755746913798,0.7402,4318.0,4317.9,0.4423]
[1755746914403,0.2979,4318.0,4317.9,0.4423]
[1755746914898,0.002,4318.0,4317.9,0.4423]
[1755746916480,0.2979,4318.0,4317.9,0.4423]
[1755746917368,0.4139,4318.0,4317.9,0.4423]
[1755746918696,0.118,4318.0,4317.9,0.7438]
[1755746919666,0.4139,4318.0,4317.9,0.4423]
[1755746920598,0.118,4318.0,4317.9,0.4423]
[1755746922378,0.118,4318.0,4317.9,0.7308]
[1755746923471,8.40107474,4318.0,4317.9,0.4423]
[1755746923781,1.69530747,4318.0,4317.9,0.4423]
[1755746924509,1.24770747,4318.0,4317.9,0.4423]
[1755746924711,0.95810747,4318.0,4317.9,0.4423]
[1755746924876,0.95810747,4318.0,4317.9,0.7308]
[1755746925078,0.118,4318.0,4317.9,0.7308]
[1755746929805,0.118,4318.0,4317.9,0.4423]
[1755746931210,0.4076,4318.0,4317.9,0.4423]
[1755746932798,0.8552,4318.0,4317.9,0.4423]
[1755746932997,9.24118221,4318.0,4317.8,0.001]
[1755746933191,7.95347474,4318.0,4317.8,0.001]
[1755746933411,0.4476,4317.9,4317.8,0.001]
[1755746933610,0.7372,4317.9,4317.8,0.001]
[1755746936201,0.2896,4317.9,4317.8,0.001]
[1755746936585,0.73222,4317.9,4317.8,0.001]
[1755746937295,1.17982,4317.9,4317.8,0.001]
[1755746938482,0.73222,4317.9,4317.8,0.001]
[1755746938818,1.17982,4317.9,4317.8,0.001]
[1755746939932,8.72569474,4317.9,4317.8,0.001]
[1755746941331,1.17982,4317.9,4317.8,0.001]
[1755746941502,0.73222,4317.9,4317.8,0.001]
[1755746941892,0.44262,4317.9,4317.8,0.2895]
[1755746942093,3.689,4318.0,4317.8,0.2895]
[1755746942292,0.118,4318.0,4317.8,0.001]
[1755746942490,3.572,4318.0,4317.9,0.2885]
[1755746942685,0.116,4317.9,4317.8,0.001]
[1755746942890,0.4056,4317.9,4317.8,0.4433]
[1755746943627,0.116,4317.9,4317.8,0.7318]
[1755746944125,0.116,4317.9,4317.8,1.183]
[1755746945293,0.116,4317.9,4317.8,0.7318]
[1755746945605,0.4056,4317.9,4317.8,0.4433]
[1755746945914,0.8532,4317.9,4317.8,0.001]
[1755746946117,1.69330747,4317.9,4317.8,0.001]
[1755746946823,0.4056,4317.9,4317.8,0.001]
[1755746947025,0.116,4317.9,4317.8,0.2895]
[1755746947527,0.116,4317.9,4317.8,0.001]
[1755746947728,0.4056,4317.9,4317.8,0.001]
[1755746948197,0.8532,4317.9,4317.8,0.001]
[1755746949234,0.4056,4317.9,4317.8,0.001]
[1755746949408,0.116,4317.9,4317.8,0.001]
[1755746949809,0.4056,4317.9,4317.8,0.001]
[1755746950827,0.116,4317.9,4317.8,0.001]
[1755746951039,0.4056,4317.9,4317.8,0.001]
[1755746951960,0.8702,4317.9,4317.8,0.001]
[1755746952141,5.28100747,4317.9,4317.8,0.001]
[1755746953847,5.94100747,4317.9,4317.8,0.001]
[1755746954710,8.94100747,4317.9,4317.8,0.001]
[1755746955014,9.50616259,4317.9,4317.8,0.001]
[1755746955441,9.15837285,4317.9,4317.8,0.001]
[1755746955609,9.50571538,4317.9,4317.8,0.001]
[1755746956011,6.4371089,4317.9,4317.8,0.001]
[1755746956253,16.70307756,4317.9,4317.8,0.001]
[1755746956541,16.58707756,4317.9,4317.8,0.001]
[1755746957060,16.93439386,4317.9,4317.8,0.001]
[1755746957345,16.93439386,4317.9,4317.4,0.001]
[1755746957346,11.20587474,4317.5,4317.4,0.001]
[1755746957517,16.70595756,4317.5,4317.4,0.001]
[1755746957946,17.17055756,4317.5,4317.4,0.001]
[1755746959412,33.66,4317.4,4315.6,0.001]
[1755746959613,3.66,4316.9,4315.6,0.001]
[1755746959818,8.50017474,4316.4,4315.6,0.001]
[1755746960039,12.06817474,4316.4,4315.6,0.001]
[1755746960441,12.53277474,4316.4,4315.6,0.001]
[1755746960641,12.64954469,4316.4,4315.6,0.001]
[1755746960843,9.08154469,4316.4,4315.6,0.001]
[1755746961044,13.55769916,4316.4,4315.6,0.001]
[1755746962041,7.47615447,4316.4,4316.3,0.294]
[1755746962242,15.02202921,4316.4,4316.3,0.294]
[1755746962543,15.68202921,4316.4,4316.3,0.294]
[1755746963044,15.97632921,4316.4,4316.3,0.001]
[1755746963225,16.44092921,4316.4,4316.3,0.001]
[1755746964060,15.68202921,4316.4,4316.3,0.001]
[1755746965113,15.68202921,4316.4,4316.3,0.294]
[1755746965313,15.68202921,4316.4,4316.3,0.001]
[1755746965616,15.97632921,4316.4,4316.3,0.001]
[1755746966328,15.79802921,4316.4,4316.3,0.001]
[1755746968055,16.09232921,4316.4,4316.3,0.001]
[1755746968241,16.55692921,4316.4,4316.3,0.001]
[1755746972160,16.09232921,4316.4,4316.3,0.001]
[1755746973559,16.55692921,4316.4,4316.3,0.001]
[1755746973744,3.684,4316.4,4316.3,0.7299]
[1755746974069,0.116,4316.4,4316.3,0.7299]
[1755746974426,3.684,4316.4,4316.3,0.7299]
[1755746975246,0.116,4316.4,4316.3,0.7299]
[1755746986878,0.116,4316.4,4316.3,0.7584]
[1755746987849,0.116,4316.4,4316.3,0.78156799]
[1755746991154,0.116,4316.4,4316.3,0.7584]
[1755746991359,0.116,4316.4,4316.3,0.294]
[1755746995138,0.116,4316.4,4316.3,0.7584]
[1755746995340,0.002,4316.5,4316.3,0.89756799]
[1755746995580,0.002,4316.5,4316.4,11.01027474]
[1755746995777,0.002,4316.5,4316.4,11.30177474]
[1755746995978,0.002,4316.5,4316.4,11.39464274]
[1755746996185,0.002,4316.5,4316.4,13.88215231]
[1755746996835,0.002,4316.5,4316.4,11.56540688]
[1755746997041,0.002,4316.5,4316.4,13.88215231]
[1755746998664,0.002,4316.5,4316.4,11.56540688]
[1755746999174,0.002,4316.5,4316.4,13.88215231]
[1755747000390,0.002,4317.0,4316.9,2.3164771]
[1755747000593,0.002,4317.0,4316.9,13.74101661]
[1755747000762,0.002,4317.0,4316.9,14.29825184]
[1755747001157,0.002,4317.0,4316.9,12.07461974]
[1755747001464,0.002,4317.0,4316.9,14.39109684]
[1755747002407,0.002,4317.0,4316.9,12.07461974]
[1755747002694,0.002,4317.0,4316.9,15.07361974]
[1755747003005,0.002,4317.0,4316.9,17.39009684]
[1755747003496,0.002,4317.0,4316.9,18.05009684]
[1755747003862,0.002,4317.4,4316.9,18.05009684]
[1755747003863,0.002,4317.4,4317.3,2.31626247]
[1755747004062,0.002,4317.4,4317.3,13.73979983]
[1755747004288,0.002,4317.4,4317.3,17.29703721]
[1755747004660,0.002,4317.4,4317.3,17.95703721]
[1755747005289,0.002,4317.4,4317.3,15.63977474]
[1755747005796,0.002,4317.4,4317.3,14.51537474]
[1755747005989,0.002,4317.4,4317.3,10.95337474]
[1755747006191,0.002,4317.4,4317.3,14.51537474]
[1755747006779,0.002,4317.4,4317.3,14.97977474]
[1755747007170,0.002,4317.4,4317.3,17.29603721]
[1755747010069,0.002,4317.4,4317.3,21.48603721]
[1755747011597,0.002,4317.4,4317.3,19.16977474]
[1755747012164,0.002,4317.4,4317.3,21.48603721]
[1755747012365,0.002,4317.4,4317.3,10.867]
[1755747012570,0.3173,4317.4,4317.3,7.306]
[1755747013013,0.3173,4317.4,4317.3,10.867]
[1755747013375,0.3173,4317.4,4317.3,7.306]
[1755747013569,0.002,4317.4,4317.3,3.4132]
[1755747013829,0.002,4317.4,4317.3,6.99736262]
[1755747014031,0.002,4317.4,4317.3,6.9742]
[1755747014402,0.002,4317.4,4317.3,3.4132]
[1755747014721,0.002,4317.4,4317.3,6.70016262]
[1755747014903,0.002,4317.4,4317.3,6.677]
[1755747015922,0.3173,4317.4,4317.3,6.677]
[1755747016134,0.002,4317.4,4317.3,6.677]
[1755747016341,0.002,4317.4,4317.3,6.9742]
[1755747017007,0.3173,4317.4,4317.3,6.676]
[1755747017194,0.781,4317.4,4317.3,6.676]
[1755747017397,0.781,4317.4,4317.3,0.116]
[1755747017693,0.781,4317.4,4317.3,6.676]
[1755747018710,0.781,4317.4,4317.3,3.0]
[1755747018930,0.781,4317.4,4317.2,0.092836]
[1755747019109,0.4637,4317.3,4317.2,0.092836]
[1755747019309,1.62328747,4317.3,4317.2,0.092836]
[1755747022001,1.62328747,4317.3,4316.0,0.001]
[1755747022002,2.28328747,4317.3,4316.3,3.561]
[1755747022202,7.66187474,4316.5,4316.3,3.561]
[1755747022397,0.3153,4316.4,4316.3,3.561]
[1755747022603,0.779,4316.4,4316.3,3.561]
[1755747024904,0.116,4316.5,4316.3,3.58416799]
[1755747025144,0.3153,4316.4,4316.3,3.561]
[1755747025315,0.779,4316.4,4316.3,0.001]
[1755747025514,0.779,4316.4,4316.3,3.561]
[1755747025711,0.779,4316.4,4316.3,0.001]
[1755747026038,0.779,4316.4,4316.3,3.561]
[1755747028501,0.779,4316.4,4316.3,0.001]
[1755747030335,0.116,4316.5,4316.3,0.32136799]
[1755747030541,0.116,4316.5,4316.3,0.2982]
[1755747031607,0.3153,4316.4,4316.3,0.001]
[1755747031853,0.779,4316.4,4316.3,0.001]
[1755747032056,1.62308747,4316.4,4316.3,0.001]
[1755747034623,2.28308747,4316.4,4316.3,0.001]
[1755747035621,1.62308747,4316.4,4316.3,0.001]
[1755747035826,5.18208747,4316.4,4316.3,0.001]
[1755747036343,1.62308747,4316.4,4316.3,0.001]
[1755747037942,0.3153,4316.4,4316.3,0.001]
[1755747039361,7.66187474,4316.5,4316.3,0.001]
[1755747039524,0.116,4316.5,4316.3,0.2982]
[1755747039724,0.4637,4317.5,4316.4,0.02316745]
[1755747039940,0.116,4316.7,4316.4,0.45086745]
[1755747040160,7.54787474,4317.4,4316.6,0.2972]
[1755747040455,0.116,4317.0,4316.6,0.2972]
[1755747040763,0.116,4317.0,4316.7,0.45086584]
[1755747040932,0.116,4317.0,4316.9,0.2879]
[1755747043254,0.116,4317.0,4316.9,0.984454]
[1755747044166,0.118,4317.4,4316.9,1.434254]
[1755747044481,0.2899,4317.0,4316.9,0.696554]
[1755747044690,8.41097474,4317.0,4316.9,0.696554]
[1755747050196,8.41097474,4317.0,4316.3,0.001]
[1755747050197,0.66,4316.9,4316.3,0.001]
[1755747050478,7.95177474,4316.4,4316.3,0.001]
[1755747050681,12.30495221,4316.4,4316.3,0.001]
[1755747050867,12.76415221,4316.4,4316.3,0.001]
[1755747051877,13.42415221,4316.4,4316.3,0.001]
[1755747053257,16.42415221,4316.4,4316.3,0.001]
[1755747054287,12.17612878,4316.4,4316.3,0.001]
[1755747054591,0.116,4316.4,4316.3,0.001]
[1755747054753,0.116,4316.4,4316.3,0.2889]
[1755747054955,0.116,4316.4,4316.3,0.7387]